[Event "*** SCC Grand Prix: Titled Tuesday Blitz"]
[Site "Chess.com"]
[Date "2020.07.21"]
[Round "6"]
[White "KobyKalavannan"]
[Black "LPSupi"]
[Result "0-1"]
[WhiteElo "2717"]
[BlackElo "2872"]
[TimeControl "180+1"]
[EndTime "11:05:08 PDT"]
[Termination "LPSupi won on time"]

1. d4 {[%clk 0:03:00.9]} 1... Nf6 {[%clk 0:02:55.1]} 2. c4 {[%clk 0:03:01.1]}
2... e6 {[%clk 0:02:55.2]} 3. Nf3 {[%clk 0:03:01.2]} 3... b6 {[%clk 0:02:54.8]}
4. g3 {[%clk 0:03:00.8]} 4... Ba6 {[%clk 0:02:55.1]} 5. Qc2 {[%clk 0:03:00.8]}
5... c5 {[%clk 0:02:54.7]} 6. d5 {[%clk 0:03:00.8]} 6... exd5 {[%clk 0:02:54.9]}
7. cxd5 {[%clk 0:03:01.7]} 7... Nxd5 {[%clk 0:02:55.4]} 8. Qe4+ {[%clk
0:02:59.1]} 8... Ne7 {[%clk 0:02:53.6]} 9. Qxa8 {[%clk 0:02:59.1]} 9... Nec6
{[%clk 0:02:53.9]} 10. e4 {[%clk 0:02:39.4]} 10... Qc8 {[%clk 0:02:43.2]} 11.
Bxa6 {[%clk 0:02:35.9]} 11... Qxa6 {[%clk 0:02:44.1]} 12. Bf4 {[%clk 0:01:39.1]}
12... Be7 {[%clk 0:02:43.4]} 13. Nc3 {[%clk 0:01:20.4]} 13... O-O {[%clk
0:02:42]} 14. Nd5 {[%clk 0:01:17.7]} 14... Qd3 {[%clk 0:02:29.1]} 15. Nxe7+
{[%clk 0:01:10.7]} 15... Nxe7 {[%clk 0:02:28.8]} 16. Qxa7 {[%clk 0:00:20.3]}
16... Qxe4+ {[%clk 0:02:10.2]} 17. Be3 {[%clk 0:00:20.2]} 17... Nbc6 {[%clk
0:01:55.9]} 18. Qa3 {[%clk 0:00:17.9]} 18... Nd4 {[%clk 0:01:52.1]} 19. Nxd4
{[%clk 0:00:07.5]} 19... Qxh1+ {[%clk 0:01:50.8]} 20. Kd2 {[%clk 0:00:07.2]}
20... Qxa1 {[%clk 0:01:50.1]} 21. Ne2 {[%clk 0:00:03.6]} 21... Nd5 {[%clk
0:01:42.2]} 22. Nc1 {[%clk 0:00:02.3]} 22... Qb1 {[%clk 0:01:40.5]} 23. Qb3
{[%clk 0:00:01.2]} 23... Qe4 {[%clk 0:01:36.4]} 0-1

[Event "*** SCC Grand Prix: Titled Tuesday Blitz"]
[Site "Chess.com"]
[Date "2020.07.21"]
[Round "6"]
[White "Ermito2020"]
[Black "Sam_ChessMood"]
[Result "1-0"]
[WhiteElo "2596"]
[BlackElo "2791"]
[TimeControl "180+1"]
[EndTime "11:05:08 PDT"]
[Termination "Ermito2020 won by resignation"]

1. e4 {[%clk 0:03:00.9]} 1... e5 {[%clk 0:02:59.4]} 2. Nf3 {[%clk 0:03:00.3]}
2... d6 {[%clk 0:02:59.9]} 3. d4 {[%clk 0:03:00.4]} 3... exd4 {[%clk 0:03:00.5]}
4. Nxd4 {[%clk 0:03:00.1]} 4... Nf6 {[%clk 0:03:00.8]} 5. Nc3 {[%clk 0:03:00.7]}
5... Be7 {[%clk 0:03:01.4]} 6. Bf4 {[%clk 0:02:53.9]} 6... O-O {[%clk 0:02:56]}
7. Be2 {[%clk 0:02:53.5]} 7... Nc6 {[%clk 0:02:32]} 8. Qd2 {[%clk 0:02:47.1]}
8... Nxd4 {[%clk 0:02:30.8]} 9. Qxd4 {[%clk 0:02:46.4]} 9... Be6 {[%clk
0:02:30.8]} 10. O-O-O {[%clk 0:02:43.7]} 10... Nd7 {[%clk 0:02:29.7]} 11. g4
{[%clk 0:02:38.4]} 11... Bf6 {[%clk 0:02:25.6]} 12. Qd2 {[%clk 0:02:38.1]} 12...
Nc5 {[%clk 0:01:18]} 13. f3 {[%clk 0:02:24.8]} 13... a6 {[%clk 0:01:08.7]} 14.
g5 {[%clk 0:02:23]} 14... Be5 {[%clk 0:01:07.9]} 15. Be3 {[%clk 0:02:01.3]}
15... b5 {[%clk 0:01:07.4]} 16. Nd5 {[%clk 0:01:55.5]} 16... Re8 {[%clk
0:00:51.8]} 17. Qa5 {[%clk 0:01:27.4]} 17... c6 {[%clk 0:00:36.7]} 18. Qxd8
{[%clk 0:01:26.7]} 18... Raxd8 {[%clk 0:00:33]} 19. Nb4 {[%clk 0:01:25.8]} 19...
Rc8 {[%clk 0:00:21.4]} 20. f4 {[%clk 0:01:25.2]} 20... a5 {[%clk 0:00:06.7]} 21.
Nd3 {[%clk 0:01:24.6]} 1-0

[Event "*** SCC Grand Prix: Titled Tuesday Blitz"]
[Site "Chess.com"]
[Date "2020.07.21"]
[Round "6"]
[White "iaraldinho"]
[Black "Mazetovic"]
[Result "0-1"]
[WhiteElo "2532"]
[BlackElo "2670"]
[TimeControl "180+1"]
[EndTime "11:05:09 PDT"]
[Termination "Mazetovic won by resignation"]

1. e4 {[%clk 0:03:00.9]} 1... c5 {[%clk 0:02:59.3]} 2. Nf3 {[%clk 0:02:59.7]}
2... Nc6 {[%clk 0:02:58.8]} 3. d4 {[%clk 0:03:00.1]} 3... cxd4 {[%clk
0:02:58.5]} 4. Nxd4 {[%clk 0:03:01]} 4... g6 {[%clk 0:02:58.8]} 5. Nc3 {[%clk
0:03:00.9]} 5... Bg7 {[%clk 0:02:56.2]} 6. Be3 {[%clk 0:03:01]} 6... Nf6 {[%clk
0:02:53.4]} 7. Be2 {[%clk 0:03:00.9]} 7... O-O {[%clk 0:02:52.7]} 8. O-O {[%clk
0:03:00.8]} 8... d5 {[%clk 0:02:47.8]} 9. exd5 {[%clk 0:03:01.7]} 9... Nxd5
{[%clk 0:02:46]} 10. Nxd5 {[%clk 0:03:02.6]} 10... Nxd4 {[%clk 0:02:45.2]} 11.
Bxd4 {[%clk 0:02:50.1]} 11... Qxd5 {[%clk 0:02:44.6]} 12. Bxg7 {[%clk 0:02:50]}
12... Qxd1 {[%clk 0:02:42.9]} 13. Raxd1 {[%clk 0:02:50.9]} 13... Kxg7 {[%clk
0:02:43.3]} 14. Bf3 {[%clk 0:02:49.3]} 14... Bf5 {[%clk 0:02:30]} 15. g4 {[%clk
0:02:37.5]} 15... Be6 {[%clk 0:02:21.4]} 16. Rfe1 {[%clk 0:02:35.6]} 16... Rac8
{[%clk 0:02:18.4]} 17. Rd2 {[%clk 0:02:11.9]} 17... Rc7 {[%clk 0:02:11.9]} 18.
a3 {[%clk 0:01:55.3]} 18... g5 {[%clk 0:02:09.7]} 19. Kg2 {[%clk 0:01:53.7]}
19... Rfc8 {[%clk 0:02:07.7]} 20. c3 {[%clk 0:01:53]} 20... b6 {[%clk 0:02:04]}
21. Kg3 {[%clk 0:01:51.4]} 21... Rc5 {[%clk 0:02:01.3]} 22. h4 {[%clk
0:01:43.3]} 22... h6 {[%clk 0:02:00]} 23. hxg5 {[%clk 0:01:43.1]} 23... hxg5
{[%clk 0:01:58.8]} 24. Red1 {[%clk 0:01:40.6]} 24... R8c7 {[%clk 0:01:55.8]} 25.
Rd8 {[%clk 0:01:37.9]} 25... Bb3 {[%clk 0:01:29.3]} 26. Rh1 {[%clk 0:01:31.3]}
26... Rc8 {[%clk 0:01:25.5]} 27. Rhh8 {[%clk 0:01:30.4]} 27... Rxd8 {[%clk
0:01:25.3]} 28. Rxd8 {[%clk 0:01:31.3]} 28... Rc7 {[%clk 0:01:25]} 29. Bd5
{[%clk 0:01:27.6]} 29... Bc2 {[%clk 0:01:13.1]} 30. f4 {[%clk 0:01:24.3]} 30...
gxf4+ {[%clk 0:01:11.5]} 31. Kxf4 {[%clk 0:01:25.2]} 31... e6 {[%clk 0:01:10.8]}
32. Bf3 {[%clk 0:01:24.5]} 32... Kf6 {[%clk 0:01:10.3]} 33. g5+ {[%clk
0:01:23.9]} 33... Ke7 {[%clk 0:01:10]} 34. Rd2 {[%clk 0:01:21.4]} 34... Rc4+
{[%clk 0:01:08]} 35. Rd4 {[%clk 0:01:21.2]} 35... Rc5 {[%clk 0:01:07.2]} 36. Be4
{[%clk 0:01:14.1]} 36... e5+ {[%clk 0:01:06.3]} 0-1

[Event "*** SCC Grand Prix: Titled Tuesday Blitz"]
[Site "Chess.com"]
[Date "2020.07.21"]
[Round "6"]
[White "markberk"]
[Black "2008king"]
[Result "1-0"]
[WhiteElo "2346"]
[BlackElo "2243"]
[TimeControl "180+1"]
[EndTime "11:05:09 PDT"]
[Termination "markberk won by resignation"]

1. Nf3 {[%clk 0:03:00.9]} 1... d5 {[%clk 0:02:55]} 2. g3 {[%clk 0:02:59.9]} 2...
c5 {[%clk 0:02:51.4]} 3. Bg2 {[%clk 0:02:59.5]} 3... Nf6 {[%clk 0:02:52.1]} 4.
O-O {[%clk 0:02:58.2]} 4... Nc6 {[%clk 0:02:52.5]} 5. d4 {[%clk 0:02:57.6]} 5...
e6 {[%clk 0:02:50.2]} 6. c4 {[%clk 0:02:57.3]} 6... b6 {[%clk 0:02:49.9]} 7.
cxd5 {[%clk 0:02:55.6]} 7... Nxd5 {[%clk 0:02:48.9]} 8. e4 {[%clk 0:02:51.9]}
8... Nf6 {[%clk 0:02:48.5]} 9. d5 {[%clk 0:02:48.5]} 9... exd5 {[%clk
0:02:47.3]} 10. exd5 {[%clk 0:02:46]} 10... Qxd5 {[%clk 0:02:47.5]} 11. Re1+
{[%clk 0:02:34.1]} 11... Be6 {[%clk 0:02:46.6]} 12. Qa4 {[%clk 0:02:23.9]} 12...
b5 {[%clk 0:02:00.9]} 13. Qxb5 {[%clk 0:02:17.8]} 13... Rb8 {[%clk 0:02:00.2]}
14. Qa4 {[%clk 0:02:05.4]} 14... Rb4 {[%clk 0:01:54.7]} 15. Qc2 {[%clk
0:02:00.1]} 15... Re4 {[%clk 0:01:40.4]} 16. Rxe4 {[%clk 0:01:18.3]} 16... Qxe4
{[%clk 0:01:41.3]} 17. Qd1 {[%clk 0:01:17.2]} 17... Qd5 {[%clk 0:01:39]} 18. Qa4
{[%clk 0:01:07.9]} 18... Qe4 {[%clk 0:01:25.5]} 19. Qxe4 {[%clk 0:01:07.7]}
19... Nxe4 {[%clk 0:01:26.4]} 20. Ng5 {[%clk 0:01:07.4]} 20... Nd4 {[%clk
0:00:46]} 21. Bxe4 {[%clk 0:00:59.2]} 21... Ne2+ {[%clk 0:00:45.4]} 22. Kf1
{[%clk 0:00:57.7]} 22... Nxc1 {[%clk 0:00:46.3]} 23. Nxe6 {[%clk 0:00:57.1]}
23... fxe6 {[%clk 0:00:39.9]} 24. Nc3 {[%clk 0:00:54.9]} 1-0

[Event "*** SCC Grand Prix: Titled Tuesday Blitz"]
[Site "Chess.com"]
[Date "2020.07.21"]
[Round "6"]
[White "Killertoy"]
[Black "Klavdia_Nik"]
[Result "1-0"]
[WhiteElo "2226"]
[BlackElo "2035"]
[TimeControl "180+1"]
[EndTime "11:05:09 PDT"]
[Termination "Killertoy won by resignation"]

1. e4 {[%clk 0:03:00.9]} 1... c5 {[%clk 0:02:55.9]} 2. Nf3 {[%clk 0:03:00.5]}
2... d6 {[%clk 0:02:55.7]} 3. d4 {[%clk 0:03:00]} 3... cxd4 {[%clk 0:02:55.5]}
4. Nxd4 {[%clk 0:03:00.1]} 4... Nf6 {[%clk 0:02:56.1]} 5. Nc3 {[%clk 0:03:00.1]}
5... a6 {[%clk 0:02:56]} 6. a3 {[%clk 0:03:00.2]} 6... e5 {[%clk 0:02:54.6]} 7.
Nf5 {[%clk 0:03:00]} 7... Bxf5 {[%clk 0:02:07.5]} 8. exf5 {[%clk 0:02:59.7]}
8... d5 {[%clk 0:01:50.8]} 9. Bg5 {[%clk 0:02:59.7]} 9... d4 {[%clk 0:01:50.4]}
10. Bxf6 {[%clk 0:02:59.4]} 10... Qxf6 {[%clk 0:01:32.2]} 11. Nd5 {[%clk
0:02:59.2]} 11... Qc6 {[%clk 0:01:31.7]} 12. c4 {[%clk 0:02:59.1]} 12... dxc3
{[%clk 0:01:15.6]} 13. Rc1 {[%clk 0:02:58.9]} 13... Bc5 {[%clk 0:00:35.2]} 14.
Rxc3 {[%clk 0:02:57.9]} 14... Qd6 {[%clk 0:00:35.6]} 15. b4 {[%clk 0:02:44.9]}
15... Bb6 {[%clk 0:00:29.9]} 16. Rc8+ {[%clk 0:02:41.8]} 16... Bd8 {[%clk
0:00:17.6]} 17. Nc7+ {[%clk 0:02:13.6]} 17... Kd7 {[%clk 0:00:18.5]} 18. Qxd6+
{[%clk 0:02:07]} 18... Kxd6 {[%clk 0:00:17.1]} 19. Nxa8 {[%clk 0:02:06.7]} 19...
Nc6 {[%clk 0:00:15.8]} 20. Nb6 {[%clk 0:02:03.4]} 20... Re8 {[%clk 0:00:11.5]}
21. Be2 {[%clk 0:01:59.8]} 21... Re7 {[%clk 0:00:10.7]} 22. Nc4+ {[%clk
0:01:52.5]} 22... Kd7 {[%clk 0:00:10.8]} 23. Ra8 {[%clk 0:01:51.2]} 23... Kc7
{[%clk 0:00:09.7]} 24. O-O {[%clk 0:01:49.3]} 24... b5 {[%clk 0:00:08]} 25. Na5
{[%clk 0:01:46.2]} 25... Nxa5 {[%clk 0:00:06.6]} 26. bxa5 {[%clk 0:01:45.9]} 1-0

[Event "*** SCC Grand Prix: Titled Tuesday Blitz"]
[Site "Chess.com"]
[Date "2020.07.21"]
[Round "6"]
[White "RoelandPruijssers"]
[Black "Phriex"]
[Result "1-0"]
[WhiteElo "2576"]
[BlackElo "2381"]
[TimeControl "180+1"]
[EndTime "11:05:14 PDT"]
[Termination "RoelandPruijssers won by resignation"]

1. e4 {[%clk 0:03:00.9]} 1... c5 {[%clk 0:03:00.6]} 2. Nf3 {[%clk 0:02:57.7]}
2... e6 {[%clk 0:03:01]} 3. d3 {[%clk 0:02:57.5]} 3... Nc6 {[%clk 0:03:00.3]} 4.
g3 {[%clk 0:02:56.8]} 4... Nf6 {[%clk 0:03:00.9]} 5. Bg2 {[%clk 0:02:57.2]} 5...
d6 {[%clk 0:03:01.4]} 6. O-O {[%clk 0:02:55.9]} 6... Be7 {[%clk 0:03:02]} 7. Re1
{[%clk 0:02:54.5]} 7... e5 {[%clk 0:03:01.1]} 8. c3 {[%clk 0:02:54.4]} 8... O-O
{[%clk 0:02:59.9]} 9. h3 {[%clk 0:02:54.9]} 9... Be6 {[%clk 0:02:57.6]} 10. Nbd2
{[%clk 0:02:51.7]} 10... b5 {[%clk 0:02:45.1]} 11. Ng5 {[%clk 0:02:40.4]} 11...
Qd7 {[%clk 0:02:33.6]} 12. f4 {[%clk 0:02:32.4]} 12... exf4 {[%clk 0:02:26]} 13.
gxf4 {[%clk 0:02:33.3]} 13... h6 {[%clk 0:02:17.6]} 14. Nxe6 {[%clk 0:02:29.9]}
14... Qxe6 {[%clk 0:02:11.1]} 15. Nf3 {[%clk 0:02:24.3]} 15... Rad8 {[%clk
0:01:59.4]} 16. d4 {[%clk 0:02:19.5]} 16... cxd4 {[%clk 0:01:46.1]} 17. cxd4
{[%clk 0:02:17.6]} 17... d5 {[%clk 0:01:46.7]} 18. f5 {[%clk 0:02:18.1]} 18...
Qd7 {[%clk 0:01:40.8]} 19. e5 {[%clk 0:02:18.1]} 19... Ne4 {[%clk 0:01:39.7]}
20. f6 {[%clk 0:02:17.5]} 20... gxf6 {[%clk 0:01:33.9]} 21. Bxh6 {[%clk
0:02:16.9]} 21... Rfe8 {[%clk 0:01:33.5]} 22. Nd2 {[%clk 0:01:15.6]} 22... fxe5
{[%clk 0:01:20.8]} 23. Nxe4 {[%clk 0:01:14]} 23... dxe4 {[%clk 0:01:21.7]} 24.
Rxe4 {[%clk 0:01:13.8]} 24... Nxd4 {[%clk 0:01:13.5]} 25. Qh5 {[%clk 0:01:03.3]}
25... Qf5 {[%clk 0:00:54.7]} 26. Rg4+ {[%clk 0:01:01.1]} 26... Qxg4 {[%clk
0:00:35.2]} 27. Qxg4+ {[%clk 0:00:58.8]} 1-0

[Event "*** SCC Grand Prix: Titled Tuesday Blitz"]
[Site "Chess.com"]
[Date "2020.07.21"]
[Round "6"]
[White "kingofthenil"]
[Black "Gusarov91"]
[Result "0-1"]
[WhiteElo "2445"]
[BlackElo "2645"]
[TimeControl "180+1"]
[EndTime "11:05:16 PDT"]
[Termination "Gusarov91 won by resignation"]

1. e4 {[%clk 0:03:00.9]} 1... c6 {[%clk 0:02:59]} 2. c4 {[%clk 0:03:00.8]} 2...
c5 {[%clk 0:02:58]} 3. Nf3 {[%clk 0:02:56]} 3... Nc6 {[%clk 0:02:58.1]} 4. d4
{[%clk 0:02:52.9]} 4... cxd4 {[%clk 0:02:58.4]} 5. Nxd4 {[%clk 0:02:53.8]} 5...
g6 {[%clk 0:02:59]} 6. Nc3 {[%clk 0:02:40.1]} 6... Bg7 {[%clk 0:02:59.2]} 7. Be3
{[%clk 0:02:40.8]} 7... d6 {[%clk 0:02:59.5]} 8. Be2 {[%clk 0:02:37.9]} 8...
Nxd4 {[%clk 0:02:58.8]} 9. Bxd4 {[%clk 0:02:37.6]} 9... Nf6 {[%clk 0:02:59.4]}
10. e5 {[%clk 0:02:19.1]} 10... dxe5 {[%clk 0:02:56.3]} 11. Bxe5 {[%clk
0:02:20]} 11... Qa5 {[%clk 0:02:54.7]} 12. Qa4+ {[%clk 0:02:05.3]} 12... Qxa4
{[%clk 0:02:52.8]} 13. Nxa4 {[%clk 0:02:06.2]} 13... O-O {[%clk 0:02:50.3]} 14.
Bf3 {[%clk 0:02:02.5]} 14... Nd7 {[%clk 0:02:45.8]} 15. Bxg7 {[%clk 0:02:01.4]}
15... Kxg7 {[%clk 0:02:46.3]} 16. Rc1 {[%clk 0:00:28.8]} 16... Ne5 {[%clk
0:02:44.4]} 17. Be2 {[%clk 0:00:29.3]} 17... Bd7 {[%clk 0:02:42.6]} 18. Nc3
{[%clk 0:00:24]} 18... Rac8 {[%clk 0:02:39]} 19. b3 {[%clk 0:00:22.4]} 19... Bc6
{[%clk 0:02:38.3]} 20. f4 {[%clk 0:00:21.6]} 20... Bxg2 {[%clk 0:02:30.9]} 21.
Rg1 {[%clk 0:00:13.1]} 21... Nf3+ {[%clk 0:02:30.9]} 22. Bxf3 {[%clk 0:00:07.2]}
22... Bxf3 {[%clk 0:02:31.8]} 23. Kf2 {[%clk 0:00:06.7]} 23... Bc6 {[%clk
0:02:31.6]} 24. Rge1 {[%clk 0:00:05.3]} 24... e6 {[%clk 0:02:29.7]} 25. Rcd1
{[%clk 0:00:02.2]} 25... Rfd8 {[%clk 0:02:29.4]} 26. Ne2 {[%clk 0:00:02.7]}
26... a5 {[%clk 0:02:24.5]} 27. Nd4 {[%clk 0:00:02]} 27... Be8 {[%clk
0:02:24.2]} 28. a4 {[%clk 0:00:01.8]} 28... h6 {[%clk 0:02:21.9]} 29. Rd2 {[%clk
0:00:02]} 29... Rd7 {[%clk 0:02:14.3]} 30. Red1 {[%clk 0:00:01.7]} 30... Rcd8
{[%clk 0:02:11.7]} 31. Ke3 {[%clk 0:00:02.2]} 31... Kf6 {[%clk 0:02:10.1]} 32.
Nf3 {[%clk 0:00:01.5]} 32... Rxd2 {[%clk 0:02:09.7]} 33. Rxd2 {[%clk 0:00:02]}
33... Rxd2 {[%clk 0:02:09.2]} 34. Nxd2 {[%clk 0:00:02.9]} 34... Bc6 {[%clk
0:02:08.7]} 35. Nb1 {[%clk 0:00:01.4]} 35... g5 {[%clk 0:02:08.3]} 36. Nc3
{[%clk 0:00:02.3]} 36... gxf4+ {[%clk 0:02:08]} 37. Kxf4 {[%clk 0:00:03.2]}
37... e5+ {[%clk 0:02:08.6]} 38. Ke3 {[%clk 0:00:03.8]} 38... Ke6 {[%clk
0:02:08.4]} 39. Nd1 {[%clk 0:00:01.8]} 39... f5 {[%clk 0:02:08.1]} 40. Nf2
{[%clk 0:00:02.7]} 40... f4+ {[%clk 0:02:08.1]} 41. Kd2 {[%clk 0:00:03.6]} 0-1

[Event "*** SCC Grand Prix: Titled Tuesday Blitz"]
[Site "Chess.com"]
[Date "2020.07.21"]
[Round "6"]
[White "tufferguy"]
[Black "ljuks68"]
[Result "0-1"]
[WhiteElo "2303"]
[BlackElo "2440"]
[TimeControl "180+1"]
[EndTime "11:05:16 PDT"]
[Termination "ljuks68 won by resignation"]

1. e4 {[%clk 0:03:00.9]} 1... e6 {[%clk 0:02:59.7]} 2. d3 {[%clk 0:02:57.7]}
2... d5 {[%clk 0:02:59.9]} 3. Nd2 {[%clk 0:02:57.6]} 3... Nf6 {[%clk 0:03:00.2]}
4. Ngf3 {[%clk 0:02:57.2]} 4... Be7 {[%clk 0:03:00.3]} 5. g3 {[%clk 0:02:57]}
5... O-O {[%clk 0:03:00.3]} 6. Bg2 {[%clk 0:02:57.1]} 6... c5 {[%clk 0:03:00.8]}
7. O-O {[%clk 0:02:56]} 7... Nc6 {[%clk 0:03:01.2]} 8. Re1 {[%clk 0:02:52.9]}
8... Qc7 {[%clk 0:02:58.8]} 9. e5 {[%clk 0:02:45.9]} 9... Nd7 {[%clk 0:02:58.1]}
10. Qe2 {[%clk 0:02:46.3]} 10... b5 {[%clk 0:02:56.3]} 11. Nf1 {[%clk
0:02:43.5]} 11... Qb6 {[%clk 0:02:55.7]} 12. h4 {[%clk 0:02:35.1]} 12... c4
{[%clk 0:02:55.7]} 13. Bf4 {[%clk 0:02:10.6]} 13... cxd3 {[%clk 0:02:54.6]} 14.
cxd3 {[%clk 0:02:10.4]} 14... b4 {[%clk 0:02:54.9]} 15. N1h2 {[%clk 0:02:05.9]}
15... b3 {[%clk 0:02:54.8]} 16. a3 {[%clk 0:02:04]} 16... Ba6 {[%clk 0:02:54.8]}
17. h5 {[%clk 0:01:53.4]} 17... Nd4 {[%clk 0:02:30.8]} 18. Nxd4 {[%clk
0:01:24.1]} 18... Qxd4 {[%clk 0:02:30.5]} 19. Rad1 {[%clk 0:01:07.5]} 19... Rfc8
{[%clk 0:02:26.5]} 20. Nf3 {[%clk 0:00:50.2]} 20... Qa4 {[%clk 0:02:24.5]} 21.
Bg5 {[%clk 0:00:37.5]} 21... Bxg5 {[%clk 0:02:06.9]} 22. Nxg5 {[%clk 0:00:38.4]}
22... h6 {[%clk 0:02:06.9]} 23. Nh3 {[%clk 0:00:33.6]} 23... Rc2 {[%clk
0:02:03.4]} 24. Rd2 {[%clk 0:00:32]} 24... Rac8 {[%clk 0:02:01.8]} 25. Nf4
{[%clk 0:00:31.3]} 25... Rxd2 {[%clk 0:01:52.8]} 26. Qxd2 {[%clk 0:00:31.2]}
26... Rc2 {[%clk 0:01:52.5]} 27. Qe3 {[%clk 0:00:28.6]} 27... Bb7 {[%clk
0:01:29.5]} 28. Re2 {[%clk 0:00:15.6]} 28... d4 {[%clk 0:01:25.7]} 0-1

[Event "*** SCC Grand Prix: Titled Tuesday Blitz"]
[Site "Chess.com"]
[Date "2020.07.21"]
[Round "6"]
[White "MathiasWomacka"]
[Black "csati17"]
[Result "1-0"]
[WhiteElo "2464"]
[BlackElo "2612"]
[TimeControl "180+1"]
[EndTime "11:05:17 PDT"]
[Termination "MathiasWomacka won by resignation"]

1. e4 {[%clk 0:03:00.9]} 1... e6 {[%clk 0:03:00.4]} 2. d4 {[%clk 0:02:59.3]}
2... d5 {[%clk 0:03:00.9]} 3. Nd2 {[%clk 0:02:59.8]} 3... Nf6 {[%clk 0:03:00.7]}
4. e5 {[%clk 0:02:59.5]} 4... Nfd7 {[%clk 0:03:01.2]} 5. Bd3 {[%clk 0:02:59.8]}
5... c5 {[%clk 0:03:02.1]} 6. c3 {[%clk 0:03:00.3]} 6... Nc6 {[%clk 0:03:03]} 7.
Ne2 {[%clk 0:03:00.3]} 7... cxd4 {[%clk 0:03:03.6]} 8. cxd4 {[%clk 0:03:01.2]}
8... f6 {[%clk 0:03:04.5]} 9. exf6 {[%clk 0:02:58.5]} 9... Nxf6 {[%clk
0:03:05.4]} 10. Nf3 {[%clk 0:02:58.7]} 10... Bd6 {[%clk 0:03:06.3]} 11. O-O
{[%clk 0:02:58.4]} 11... O-O {[%clk 0:03:07.2]} 12. Bf4 {[%clk 0:02:57.9]} 12...
Bxf4 {[%clk 0:03:07.4]} 13. Nxf4 {[%clk 0:02:58.8]} 13... Ng4 {[%clk 0:03:08.3]}
14. g3 {[%clk 0:02:47.5]} 14... Qf6 {[%clk 0:03:00.5]} 15. h4 {[%clk 0:02:36.4]}
15... h6 {[%clk 0:03:00.4]} 16. h5 {[%clk 0:02:29.8]} 16... Rd8 {[%clk
0:02:54.6]} 17. Bb5 {[%clk 0:02:09.4]} 17... e5 {[%clk 0:02:47.6]} 18. dxe5
{[%clk 0:02:05.9]} 18... Ncxe5 {[%clk 0:02:48.5]} 19. Re1 {[%clk 0:01:58.4]}
19... d4 {[%clk 0:01:59.9]} 20. Nxe5 {[%clk 0:01:46.2]} 20... Nxe5 {[%clk
0:02:00.8]} 21. Qe2 {[%clk 0:01:46.4]} 21... Nf7 {[%clk 0:01:38.9]} 22. Qe7
{[%clk 0:01:19.7]} 22... Bf5 {[%clk 0:01:24.3]} 23. Qxf6 {[%clk 0:01:15.5]}
23... gxf6 {[%clk 0:01:24.2]} 24. Re7 {[%clk 0:01:13.3]} 24... Nd6 {[%clk
0:01:17.4]} 25. Bd3 {[%clk 0:01:07.9]} 25... Re8 {[%clk 0:01:13.9]} 26. Rae1
{[%clk 0:01:05.7]} 26... Kf8 {[%clk 0:01:12.2]} 27. Bxf5 {[%clk 0:01:00.2]}
27... Rxe7 {[%clk 0:00:56.9]} 28. Ng6+ {[%clk 0:00:59.5]} 28... Kg8 {[%clk
0:00:57.8]} 29. Nxe7+ {[%clk 0:00:58.7]} 29... Kg7 {[%clk 0:00:58.7]} 30. Bd3
{[%clk 0:00:56]} 30... Kf7 {[%clk 0:00:56.8]} 31. Nf5 {[%clk 0:00:55.3]} 1-0

[Event "*** SCC Grand Prix: Titled Tuesday Blitz"]
[Site "Chess.com"]
[Date "2020.07.21"]
[Round "6"]
[White "isainz"]
[Black "Bastiandash"]
[Result "0-1"]
[WhiteElo "2135"]
[BlackElo "2361"]
[TimeControl "180+1"]
[EndTime "11:05:25 PDT"]
[Termination "Bastiandash won by resignation"]

1. e4 {[%clk 0:03:00.9]} 1... c5 {[%clk 0:02:58.8]} 2. Nf3 {[%clk 0:03:00.9]}
2... e6 {[%clk 0:02:58.5]} 3. d4 {[%clk 0:03:00.6]} 3... cxd4 {[%clk 0:02:59.4]}
4. Nxd4 {[%clk 0:03:00.8]} 4... a6 {[%clk 0:03:00]} 5. c4 {[%clk 0:03:00.4]}
5... Nf6 {[%clk 0:02:59.7]} 6. Nc3 {[%clk 0:02:59.9]} 6... Bb4 {[%clk 0:02:56]}
7. Qd3 {[%clk 0:02:59.3]} 7... Qc7 {[%clk 0:02:53.2]} 8. a3 {[%clk 0:02:59.2]}
8... Be7 {[%clk 0:02:52.7]} 9. Be2 {[%clk 0:02:51.9]} 9... Nc6 {[%clk
0:02:52.4]} 10. Be3 {[%clk 0:02:48.2]} 10... Ne5 {[%clk 0:02:49.3]} 11. Qd2
{[%clk 0:02:41.6]} 11... Neg4 {[%clk 0:02:34.2]} 12. Bg5 {[%clk 0:01:36.9]}
12... h6 {[%clk 0:02:30.2]} 13. Bh4 {[%clk 0:01:34.3]} 13... d6 {[%clk
0:02:23.3]} 14. Bxg4 {[%clk 0:01:31.7]} 14... Nxg4 {[%clk 0:02:21.6]} 15. Bxe7
{[%clk 0:01:31.8]} 15... Qxe7 {[%clk 0:02:20.8]} 16. O-O {[%clk 0:01:27]} 16...
O-O {[%clk 0:02:17.9]} 17. Rad1 {[%clk 0:01:21.2]} 17... Ne5 {[%clk 0:02:14.7]}
18. b3 {[%clk 0:01:17.7]} 18... Rd8 {[%clk 0:02:00.6]} 19. f4 {[%clk 0:01:13]}
19... Nd7 {[%clk 0:01:54.4]} 20. Nf3 {[%clk 0:01:10.2]} 20... Nf6 {[%clk
0:01:46.3]} 21. Rfe1 {[%clk 0:01:08]} 21... b6 {[%clk 0:01:45.2]} 22. e5 {[%clk
0:01:04.8]} 22... Ne8 {[%clk 0:01:42]} 23. Ne4 {[%clk 0:00:54.3]} 23... d5
{[%clk 0:01:30]} 24. cxd5 {[%clk 0:00:51.5]} 24... Rxd5 {[%clk 0:01:30.9]} 25.
Qb2 {[%clk 0:00:43.9]} 25... Bb7 {[%clk 0:01:30.9]} 26. Nc3 {[%clk 0:00:33.9]}
26... Rxd1 {[%clk 0:01:14.5]} 27. Rxd1 {[%clk 0:00:34]} 27... Rc8 {[%clk
0:01:15.4]} 28. Na4 {[%clk 0:00:32.4]} 28... b5 {[%clk 0:01:13]} 29. Nc3 {[%clk
0:00:20.2]} 29... Qc5+ {[%clk 0:01:11.9]} 0-1